fUST/lending_fUST_20240324
["ID","MTS","AMOUNT","RATE_DAILY","PERIOD"]
[320325850,1711291838084,-257.7309967,0.00023584,2]
[320325851,1711291838094,-500.0,0.00023584,2]
[320325852,1711291838104,-500.0,0.00023858,2]
[320325853,1711291838113,-1132.19,0.00023858,2]
[320325854,1711291838123,-500.0,0.00023858,2]
[320325855,1711291838132,-166.666666,0.00023979,2]
[320325856,1711291838141,-537.75,0.00024132,2]
[320325857,1711291838151,-1132.19,0.00024132,2]
[320325858,1711291838161,-500.0,0.00024132,2]
[320325859,1711291838171,-1132.19,0.00024406,2]
[320325860,1711291838180,-317.56723126,0.00024406,2]
[320325861,1711291838193,-182.43276874,0.00024406,2]
[320325862,1711291838204,-166.666666,0.00024633,2]
[320325863,1711291838213,-313.7586228,0.0002468,2]
[320325864,1711291838225,-818.4313772,0.0002468,2]
[320325865,1711291838234,-645.43758175,0.0002468,2]
[320325866,1711291838243,-1132.19,0.00024954,2]
[320325867,1711291838253,-1132.19,0.00025228,2]
[320325868,1711291838262,-166.666666,0.00025287,2]
[320325869,1711291838271,-1132.19,0.00025502,2]
[320325870,1711291838280,-1132.19,0.00025776,2]
[320325871,1711291838290,-166.666666,0.0002594,2]
[320325872,1711291838299,-1132.19,0.0002605,2]
[320325873,1711291838309,-152.11549897,0.00026097,2]
[320325874,1711291838319,-1132.19,0.00026324,2]
[320325875,1711291838328,-166.666666,0.00026594,2]
[320325876,1711291838338,-1132.19,0.00026598,2]
[320325877,1711291838347,-500.0,0.00026692,2]
[320325878,1711291838356,-500.0,0.00026692,2]
[320325879,1711291838366,-500.0,0.00026692,2]
[320325880,1711291838375,-225.13757817,0.00026692,2]
[320325881,1711291838385,-500.0,0.00026692,2]
[320325882,1711291838394,-500.0,0.00026692,2]
[320325883,1711291838404,-500.0,0.00026692,2]
[320325884,1711291838413,-500.0,0.00026692,2]
[320325885,1711291838422,-500.0,0.00026692,2]
[320325886,1711291838432,-500.0,0.00026692,2]
[320325887,1711291838442,-1132.19,0.00026872,2]
[320325888,1711291838451,-265.10176771,0.00026966,2]
[320325889,1711291838461,-500.0,0.00026966,2]
[320325890,1711291838474,-500.0,0.00026966,2]
[320325891,1711291838483,-500.0,0.00026966,2]
[320325892,1711291838493,-500.0,0.00026966,2]
[320325893,1711291838503,-500.0,0.00026966,2]
[320325894,1711291838513,-500.0,0.00026966,2]
[320325895,1711291838522,-500.0,0.00026966,2]
[320325896,1711291838531,-500.0,0.00026966,2]
[320325897,1711291838540,-500.0,0.00026966,2]
[320325898,1711291838551,-500.0,0.00026966,2]
[320325899,1711291838561,-1619.429426,0.00027145,2]
[320325900,1711291838570,-500.0,0.00027146,2]
[320325901,1711291838579,-1132.19,0.00027146,2]
[320325902,1711291838589,-1000.0,0.00027236,2]
[320325903,1711291838598,-47777.70713957,0.00027239,2]
[320325904,1711291838608,-500.0,0.0002724,2]
[320325905,1711291838617,-572.35,0.0002724,2]
[320325906,1711291838626,-500.0,0.0002724,2]
[320325907,1711291838636,-500.0,0.0002724,2]
[320325908,1711291838645,-149.79931494,0.0002724,2]
[320325914,1711291839486,-350.20068506,0.0002724,2]
[320325915,1711291839495,-500.0,0.0002724,2]
[320325918,1711291839504,-551.51,0.0002724,2]
[320325921,1711291839514,-500.0,0.0002724,2]
[320325924,1711291839523,-500.0,0.0002724,2]
[320325928,1711291839532,-500.0,0.0002724,2]
[320325933,1711291839541,-206.98205289,0.0002724,2]
[320326234,1711291845769,-190.67015884,0.00027238,2]
[320326236,1711291845778,-156.17955309,0.00027238,2]
[320326238,1711291845787,-293.01794711,0.0002724,2]
[320326240,1711291845796,-500.0,0.0002724,2]
[320326242,1711291845805,-500.0,0.0002724,2]
[320326244,1711291845814,-171.92716975,0.0002724,2]
[320326246,1711291845823,-500.0,0.0002724,2]
[320326247,1711291845833,-166.666666,0.00027248,2]
[320326249,1711291845841,-260.70583202,0.00027297,2]
[320326251,1711291845851,-201.53936525,0.00027394,2]
[320326253,1711291845860,-1066.6216617,0.00027395,2]
[320326255,1711291845869,-165.54666243,0.00027396,2]
[320326257,1711291845878,-876.45467613,0.00027396,2]
[320326259,1711291845887,-156.1635949,0.00027396,2]
[320326261,1711291845896,-456.22337482,0.00027396,2]
[320326263,1711291845905,-344.68181794,0.00027396,2]
[320326265,1711291845913,-1000.0,0.00027397,2]
[320326267,1711291845922,-1000.0,0.00027397,2]
[320326269,1711291845931,-310.34,0.00027397,2]
[320326271,1711291845940,-500.0,0.0002742,2]
[320326273,1711291845949,-2555.0,0.0002742,2]
[320326275,1711291845958,-500.0,0.0002742,2]
[320326277,1711291845968,-1132.19,0.0002742,2]
[320326279,1711291845977,-1000.0,0.0002751,120]
[320326281,1711291845986,-500.0,0.00027514,14]
[320326283,1711291845995,-500.0,0.00027514,2]
[320326285,1711291846004,-500.0,0.00027514,2]
[320326287,1711291846013,-500.0,0.00027514,2]
[320326289,1711291846022,-500.0,0.00027514,2]
[320326291,1711291846031,-420.87874557,0.00027514,2]
[320326293,1711291846040,-500.0,0.00027514,2]
[320326295,1711291846049,-500.0,0.00027514,2]
[320326296,1711291846058,-500.0,0.00027514,2]
[320326298,1711291846067,-500.0,0.00027514,2]
[320326300,1711291846076,-500.0,0.00027514,2]
[320326302,1711291846085,-500.0,0.00027514,2]
[320326304,1711291846094,-500.0,0.00027514,2]
[320326306,1711291846105,-500.0,0.00027514,2]
[320326308,1711291846114,-371.68,0.00027514,2]
[320326310,1711291846124,-500.0,0.00027514,2]
[320326312,1711291846133,-500.0,0.00027514,2]
[320326314,1711291846142,-500.0,0.00027514,2]
[320326316,1711291846151,-2317.43,0.00027514,2]
[320326318,1711291846160,-568.52,0.00027514,2]
[320326320,1711291846169,-572.35,0.00027514,2]
[320326322,1711291846179,-552.09,0.00027514,2]
[320326324,1711291846189,-500.0,0.00027514,2]
[320326325,1711291846199,-500.0,0.00027514,2]
[320326327,1711291846209,-500.0,0.00027514,2]
[320326328,1711291846219,-500.0,0.00027514,2]
[320326330,1711291846229,-500.0,0.00027514,2]
[320326331,1711291846239,-500.0,0.00027514,2]
[320326332,1711291846249,-500.0,0.00027694,2]
[320326333,1711291846258,-2555.0,0.00027694,2]
[320326335,1711291846268,-500.0,0.00027694,2]
[320326337,1711291846278,-1132.19,0.00027694,2]
[320326339,1711291846288,-260.70583198,0.00027776,2]
[320326341,1711291846298,-500.0,0.00027788,14]
[320326343,1711291846308,-500.0,0.00027788,2]
[320326345,1711291846317,-521.93,0.00027788,2]
[320326347,1711291846326,-500.0,0.00027788,2]
[320326349,1711291846335,-241.7,0.00027788,2]
[320326351,1711291846346,-500.0,0.00027788,2]
[320326353,1711291846362,-500.0,0.00027788,2]
[320326354,1711291846378,-500.0,0.00027788,2]
[320326356,1711291846392,-500.0,0.00027788,2]
[320326358,1711291846404,-500.0,0.00027788,2]
[320326361,1711291846418,-507.72,0.00027788,2]
[320326363,1711291846431,-500.0,0.00027788,2]
[320326365,1711291846445,-2317.43,0.00027788,2]
[320326368,1711291846459,-568.52,0.00027788,2]
[320326370,1711291846476,-572.35,0.00027788,2]
[320326371,1711291846487,-500.0,0.00027788,2]
[320326372,1711291846501,-500.0,0.00027788,2]
[320326373,1711291846515,-638.7,0.00027788,2]
[320326374,1711291846529,-500.0,0.00027788,2]
[320326375,1711291846543,-500.0,0.00027788,2]
[320326376,1711291846558,-500.0,0.00027788,2]
[320326377,1711291846570,-169.936569,0.00027835,2]
[320326378,1711291846582,-446.56,0.00027968,2]
[320326379,1711291846600,-2555.0,0.00027968,2]
[320326380,1711291846613,-500.0,0.00027968,2]
[320326381,1711291846627,-1132.19,0.00027968,2]
[320326382,1711291846640,-500.0,0.00028062,14]
[320326383,1711291846653,-500.0,0.00028062,2]
[320326384,1711291846668,-500.0,0.00028062,2]
[320326385,1711291846681,-500.0,0.00028062,2]
[320326386,1711291846696,-500.0,0.00028062,2]
[320326387,1711291846711,-500.0,0.00028062,2]
[320326388,1711291846726,-500.0,0.00028062,2]
[320326389,1711291846740,-500.0,0.00028062,2]
[320326390,1711291846753,-2317.43,0.00028062,2]
[320326391,1711291846765,-568.52,0.00028062,2]
[320326392,1711291846779,-572.35,0.00028062,2]
[320326393,1711291846794,-500.0,0.00028062,2]
[320326394,1711291846807,-500.0,0.00028062,2]
[320326395,1711291846820,-500.0,0.00028062,2]
[320326396,1711291846833,-500.0,0.00028062,2]
[320326397,1711291846844,-280.62,0.00028062,2]
[320326398,1711291846857,-2555.00320715,0.00028242,2]
[320326399,1711291846869,-408.80557527,0.00028242,2]
[320326400,1711291846881,-1062.59603573,0.00028242,2]
[320326401,1711291846898,-69.66945857,0.00028242,2]
[320326402,1711291846911,-260.70583198,0.00028256,2]
[320326403,1711291846923,-488.99926206,0.00028336,14]
[320326404,1711291846936,-500.0,0.00028336,2]
[320326405,1711291846948,-500.0,0.00028336,2]
[320326406,1711291846961,-500.0,0.00028336,2]
[320326407,1711291846972,-500.0,0.00028336,2]
[320326408,1711291846984,-500.0,0.00028336,2]
[320326409,1711291846996,-500.0,0.00028336,2]
[320326410,1711291847009,-1627.43178756,0.00028336,2]
[320326411,1711291847222,-500.0,0.00027397,2]
[320326412,1711291847232,-500.0,0.00027397,2]
[320326413,1711291847243,-500.0,0.00027397,2]
[320326414,1711291847252,-500.0,0.00027397,2]
[320326415,1711291847261,-368.33965717,0.00027397,2]
[320326416,1711291847274,-131.66034283,0.00027397,2]
[320326417,1711291847284,-500.0,0.00027397,2]
[320326418,1711291847293,-178.33965707,0.00027397,2]
[320326419,1711291847305,-321.66034293,0.00027397,2]
[320326420,1711291847456,-500.0,0.00027397,2]
[320326421,1711291847468,-500.0,0.00027397,2]
[320326422,1711291847479,-500.0,0.00027397,2]
[320326423,1711291847489,-500.0,0.00027397,2]
[320326424,1711291847498,-500.0,0.00027397,2]
[320326425,1711291847509,-500.0,0.00027397,2]
[320326426,1711291847520,-500.0,0.00027397,2]
[320326427,1711291847530,-500.0,0.00027397,2]
[320326428,1711291847541,-500.0,0.00027397,2]
[320326429,1711291847550,-500.0,0.00027397,2]
[320326430,1711291847562,-500.0,0.00027397,2]
[320326431,1711291847572,-500.0,0.00027397,2]
[320326432,1711291847581,-500.0,0.00027397,2]
[320326433,1711291847591,-500.0,0.00027397,2]
[320326434,1711291847603,-500.0,0.00027397,2]
[320326435,1711291847613,-500.0,0.00027397,2]
[320326436,1711291847624,-500.0,0.00027397,2]
[320326437,1711291847633,-500.0,0.00027397,2]
[320326438,1711291847645,-500.0,0.00027397,2]
[320326439,1711291847656,-210.54190004,0.00027397,2]
[320326440,1711291847666,-500.0,0.00027397,2]
[320326441,1711291847676,-500.0,0.00027397,2]
[320326442,1711291847686,-500.0,0.00027397,2]
[320326443,1711291847695,-500.0,0.00027397,2]
[320326444,1711291847705,-500.0,0.00027397,2]
[320326445,1711291847717,-500.0,0.00027397,2]
[320326446,1711291847726,-500.0,0.00027397,2]
[320326447,1711291847737,-500.0,0.00027397,2]
[320326448,1711291847747,-500.0,0.00027397,2]
[320326449,1711291847758,-500.0,0.00027397,2]
[320326450,1711291847768,-689.99821244,0.00028336,2]
[320326451,1711291847781,-568.52,0.00028336,2]
[320326452,1711291847791,-572.35,0.00028336,2]
[320326453,1711291847803,-500.0,0.00028336,2]
[320326454,1711291847814,-500.0,0.00028336,2]
[320326455,1711291847824,-500.0,0.00028336,2]
[320326456,1711291847834,-617.19076738,0.00028336,2]
[320326457,1711291847844,-199.39798401,0.000285,2]
[320326458,1711291847854,-500.0,0.0002861,2]
[320326459,1711291847863,-500.0,0.0002861,2]
[320326460,1711291847873,-500.0,0.0002861,2]
[320326461,1711291847883,-541.19368034,0.0002861,2]
[320326462,1711291847893,-500.0,0.0002861,2]
[320326463,1711291847903,-500.0,0.0002861,2]
[320326464,1711291847913,-2317.43,0.0002861,2]
[320326465,1711291847922,-568.52,0.0002861,2]
[320326466,1711291847932,-572.35,0.0002861,2]
[320326467,1711291847943,-597.47,0.0002861,2]
[320326468,1711291847953,-500.0,0.0002861,2]
[320326469,1711291847963,-500.0,0.0002861,2]
[320326470,1711291847975,-260.70583198,0.00028735,2]
[320326471,1711291847985,-446.44,0.00028884,2]
[320326472,1711291847995,-500.0,0.00028884,2]
[320326473,1711291848005,-500.0,0.00028884,2]
[320326474,1711291848015,-500.0,0.00028884,2]
[320326475,1711291848026,-500.0,0.00028884,2]
[320326476,1711291848035,-2317.43,0.00028884,2]
[320326477,1711291848047,-568.52,0.00028884,2]
[320326478,1711291848056,-572.35,0.00028884,2]
[320326479,1711291848067,-500.0,0.00028884,2]
[320326480,1711291848077,-500.0,0.00028884,2]
[320326481,1711291848086,-72642.09237508,0.0002904,3]
[320326482,1711291848099,-5686.96155496,0.0002904,3]
[320326483,1711291848109,-500.0,0.0002904,2]
[320326484,1711291848119,-500.0,0.0002904,2]
[320326485,1711291848128,-500.0,0.0002904,2]
[320326486,1711291848138,-500.0,0.0002904,2]
[320326487,1711291848147,-500.0,0.0002904,2]
[320326488,1711291848157,-500.0,0.0002904,2]
[320326489,1711291848167,-500.0,0.0002904,2]
[320326490,1711291848176,-500.0,0.0002904,2]
[320326491,1711291848185,-500.0,0.0002904,2]
[320326492,1711291848195,-500.0,0.0002904,2]
[320326493,1711291848204,-500.0,0.0002904,2]
[320326494,1711291848213,-500.0,0.0002904,2]
[320326495,1711291848222,-500.0,0.0002904,2]
[320326496,1711291848232,-500.0,0.0002904,2]
[320326497,1711291848241,-500.0,0.0002904,2]
[320326498,1711291848250,-500.0,0.0002904,2]
[320326499,1711291848258,-500.0,0.0002904,2]
[320326500,1711291848267,-500.0,0.0002904,2]
[320326501,1711291848276,-500.0,0.0002904,2]
[320326502,1711291848284,-500.0,0.0002904,2]
[320326503,1711291848293,-500.0,0.0002904,2]
[320326504,1711291848302,-500.0,0.0002904,2]
[320326505,1711291848311,-500.0,0.0002904,2]
[320326506,1711291848320,-500.0,0.0002904,2]
[320326507,1711291848329,-500.0,0.0002904,2]
[320326508,1711291848337,-500.0,0.0002904,2]
[320326509,1711291848346,-500.0,0.0002904,2]
[320326510,1711291848355,-515.73,0.0002904,2]
[320326511,1711291848364,-500.0,0.0002904,2]
[320326512,1711291848372,-500.0,0.0002904,2]
[320326513,1711291848382,-500.03238454,0.0002904,2]
[320326514,1711291848390,-500.0,0.0002904,2]
[320326515,1711291848399,-765.83,0.0002904,2]
[320326516,1711291848408,-500.0,0.0002904,2]
[320326517,1711291848417,-500.0,0.0002904,2]
[320326518,1711291848426,-500.0,0.0002904,2]
[320326519,1711291848436,-500.0,0.0002904,2]
[320326520,1711291848445,-604.14724391,0.0002904,2]
[320326521,1711291848455,-500.0,0.0002904,2]
[320326522,1711291848464,-221.66082681,0.0002904,2]
[320326523,1711291848475,-626.66,0.0002904,2]
[320326524,1711291848484,-500.0,0.0002904,2]
[320326525,1711291848493,-158.50350246,0.0002904,2]
[320326526,1711291848502,-641.66,0.0002904,2]
[320326527,1711291848512,-500.79221732,0.0002904,2]
[320326528,1711291848521,-500.0,0.0002904,2]
[320326529,1711291848530,-500.0,0.0002904,2]
[320326530,1711291848539,-500.0,0.0002904,2]
[320326531,1711291848548,-500.0,0.0002904,2]
[320326532,1711291848557,-500.0,0.0002904,2]
[320326533,1711291848566,-500.0,0.0002904,2]
[320326534,1711291848576,-500.0,0.0002904,2]
[320326535,1711291848584,-500.0,0.0002904,2]
[320326536,1711291848593,-500.0,0.0002904,2]
[320326537,1711291848602,-501.97136362,0.0002904,2]
[320326538,1711291848612,-500.0,0.0002904,2]
[320326539,1711291848621,-500.0,0.0002904,2]
[320326540,1711291848630,-500.0,0.0002904,2]
[320326541,1711291848639,-500.0,0.0002904,2]
[320326542,1711291848648,-500.0,0.0002904,2]
[320326543,1711291848657,-500.0,0.0002904,2]
[320326544,1711291848667,-500.0,0.0002904,2]
[320326545,1711291848676,-500.0,0.0002904,2]
[320326546,1711291848685,-500.0,0.00029041,2]
[320326547,1711291848695,-502.1407914,0.00029041,2]
[320326548,1711291848705,-500.0,0.00029041,2]
[320326549,1711291848715,-500.0,0.00029041,2]
[320326550,1711291848723,-500.0,0.00029041,2]
[320326551,1711291848732,-500.0,0.00029041,2]
[320326552,1711291848741,-500.0,0.00029041,2]
[320326553,1711291848751,-500.0,0.00029158,2]
[320326554,1711291848761,-500.0,0.00029158,2]
[320326555,1711291848770,-500.0,0.00029158,2]
[320326556,1711291848779,-500.0,0.00029158,2]
[320326557,1711291848788,-2317.43,0.00029158,2]
[320326558,1711291848797,-568.52,0.00029158,2]
[320326559,1711291848806,-572.35,0.00029158,2]
[320326560,1711291848815,-461.03805754,0.00029158,2]
[320326561,1711291848825,-500.0,0.00029158,2]
[320326562,1711291848834,-2000.0,0.00029214,2]
[320326563,1711291848843,-260.70583198,0.00029214,2]
[320326564,1711291848852,-296.26124854,0.00029314,2]
[320326565,1711291848861,-278.44,0.00029314,2]
[320326566,1711291848870,-500.0,0.00029314,2]
[320326567,1711291848879,-499.99,0.00029314,2]
[320326568,1711291848888,-500.0,0.00029314,2]
[320326569,1711291848898,-500.0,0.00029314,2]
[320326570,1711291848907,-500.0,0.00029314,2]
[320326571,1711291848917,-500.0,0.00029314,2]
[320326572,1711291848926,-500.0,0.00029314,2]
[320326573,1711291848935,-500.0,0.00029314,2]
[320326574,1711291848945,-765.83,0.00029314,2]
[320326575,1711291848955,-500.0,0.00029314,2]
[320326576,1711291848965,-258.65195657,0.00029314,2]
[320326577,1711291848975,-500.0,0.00029314,2]
[320326578,1711291848984,-626.66,0.00029314,2]
[320326579,1711291848993,-641.66,0.00029314,2]
[320326580,1711291849002,-509.86,0.00029314,2]
[320326581,1711291849010,-500.0,0.00029314,2]
[320326582,1711291849019,-500.0,0.00029314,2]
[320326583,1711291849028,-500.0,0.00029314,2]
[320326584,1711291849037,-265.25,0.00029314,2]
[320326585,1711291849046,-500.0,0.00029314,2]
[320326586,1711291849055,-500.0,0.00029314,2]
[320326587,1711291849065,-500.0,0.00029314,2]
[320326588,1711291849074,-3464.72,0.00029314,2]
[320326589,1711291849084,-500.0,0.00029314,2]
[320326590,1711291849093,-500.0,0.00029315,2]
[320326591,1711291849102,-539.19460141,0.00029315,2]
[320326592,1711291849112,-500.0,0.00029315,2]
[320326593,1711291849121,-500.0,0.00029432,2]
[320326594,1711291849130,-266.93,0.00029432,2]
[320326595,1711291849139,-500.0,0.00029432,2]
[320326596,1711291849149,-500.0,0.00029432,2]
[320326597,1711291849158,-2317.43,0.00029432,2]
[320326598,1711291849167,-568.52,0.00029432,2]
[320326599,1711291849177,-572.35,0.00029432,2]
[320326600,1711291849186,-500.0,0.00029432,2]
[320326601,1711291849204,-1070.908785,0.00029509,2]
[320326602,1711291849218,-500.0,0.00029588,2]
[320326603,1711291849228,-500.0,0.00029588,2]
[320326604,1711291849237,-500.0,0.00029588,2]
[320326605,1711291849247,-500.0,0.00029588,2]
[320326606,1711291849257,-500.0,0.00029588,2]
[320326607,1711291849266,-500.0,0.00029588,2]
[320326608,1711291849276,-765.83,0.00029588,2]
[320326609,1711291849285,-500.0,0.00029588,2]
[320326610,1711291849295,-500.0,0.00029588,2]
[320326611,1711291849304,-626.66,0.00029588,2]
[320326612,1711291849314,-641.66,0.00029588,2]
[320326613,1711291849323,-500.0,0.00029588,2]
[320326614,1711291849333,-500.0,0.00029588,2]
[320326615,1711291849342,-151.46,0.00029588,2]
[320326616,1711291849352,-500.0,0.00029588,2]
[320326617,1711291849361,-500.0,0.00029588,2]
[320326618,1711291849371,-3464.72,0.00029588,2]
[320326619,1711291849380,-500.0,0.00029588,2]
[320326620,1711291849390,-500.0,0.00029589,2]
[320326621,1711291849400,-362.14,0.00029706,2]
[320326622,1711291849409,-500.0,0.00029706,2]
[320326623,1711291849419,-500.0,0.00029706,2]
[320326624,1711291849429,-2317.43,0.00029706,2]
[320326625,1711291849438,-568.52,0.00029706,2]
[320326626,1711291849448,-572.35,0.00029706,2]
[320326627,1711291849457,-500.0,0.00029706,2]
[320326628,1711291849468,-500.0,0.00029862,2]
[320326629,1711291849479,-500.0,0.00029862,2]
[320326630,1711291849489,-500.0,0.00029862,2]
[320326631,1711291849499,-500.0,0.00029862,2]
[320326632,1711291849509,-500.0,0.00029862,2]
[320326633,1711291849519,-765.83,0.00029862,2]
[320326634,1711291849528,-500.0,0.00029862,2]
[320326635,1711291849538,-500.0,0.00029862,2]
[320326636,1711291849548,-626.66,0.00029862,2]
[320326637,1711291849557,-641.66,0.00029862,2]
[320326638,1711291849566,-500.0,0.00029862,2]
[320326639,1711291849576,-500.0,0.00029862,2]
[320326640,1711291849586,-500.0,0.00029862,2]
[320326641,1711291849595,-3464.72,0.00029862,2]
[320326642,1711291849604,-500.0,0.00029862,2]
[320326643,1711291849614,-500.0,0.00029863,2]
[320326644,1711291849623,-236.7497194,0.000299,7]
[320326645,1711291849632,-500.0,0.0002998,2]
[320326646,1711291849642,-500.0,0.0002998,2]
[320326647,1711291849651,-2317.43,0.0002998,2]
[320326648,1711291849660,-568.52,0.0002998,2]
[320326649,1711291849670,-572.35,0.0002998,2]
[320326650,1711291849681,-500.0,0.0002998,2]
[320326651,1711291849692,-154.0,0.0003,2]
[320326652,1711291849702,-527.96,0.00030136,2]
[320326653,1711291849713,-500.0,0.00030136,2]
[320326654,1711291849724,-500.0,0.00030136,2]
[320326655,1711291849735,-500.0,0.00030136,2]
[320326656,1711291849745,-500.0,0.00030136,2]
[320326657,1711291849755,-765.83,0.00030136,2]
[320326658,1711291849765,-500.0,0.00030136,2]
[320326659,1711291849775,-500.0,0.00030136,2]
[320326660,1711291849784,-626.66,0.00030136,2]
[320326661,1711291849793,-641.66,0.00030136,2]
[320326662,1711291849803,-487.44267672,0.00030136,2]
[320326663,1711291849813,-500.0,0.00030136,2]
[320326664,1711291849822,-419.80480308,0.00030136,2]
[320326665,1711291849831,-3464.72,0.00030136,2]
[320326666,1711291849841,-500.0,0.00030136,2]
[320326667,1711291849850,-500.0,0.00030254,2]
[320326668,1711291849860,-500.0,0.00030254,2]
[320326669,1711291849869,-2317.43,0.00030254,2]
[320326670,1711291849878,-568.52,0.00030254,2]
[320326671,1711291849888,-572.35,0.00030254,2]
[320326672,1711291849897,-500.0,0.00030254,2]
[320326673,1711291849907,-3388.24819139,0.00030297,2]
[320326674,1711291849917,-153.0,0.00030354,2]
[320326675,1711291849926,-153.0,0.00030354,2]
[320326676,1711291849936,-153.0,0.00030354,2]
[320326677,1711291849945,-153.0,0.00030354,2]
[320326678,1711291849955,-153.0,0.00030354,2]
[320326679,1711291850072,-153.0,0.00030354,2]
[320326680,1711291850081,-500.0,0.0003041,2]
[320326681,1711291850091,-500.0,0.0003041,2]
[320326682,1711291850100,-500.0,0.0003041,2]
[320326683,1711291850109,-765.83,0.0003041,2]
[320326684,1711291850119,-500.0,0.0003041,2]
[320326685,1711291850128,-500.0,0.0003041,2]
[320326686,1711291850137,-626.66,0.0003041,2]
[320326687,1711291850146,-641.66,0.0003041,2]
[320326688,1711291850155,-3464.72,0.0003041,2]
[320326689,1711291850164,-500.0,0.0003041,2]
[320326690,1711291850174,-500.0,0.00030528,2]
[320326691,1711291850183,-500.0,0.00030528,2]
[320326692,1711291850193,-2317.43,0.00030528,2]
[320326693,1711291850202,-568.52,0.00030528,2]
[320326694,1711291850212,-572.35,0.00030528,2]
[320326695,1711291850222,-500.0,0.00030528,2]
[320326696,1711291850232,-500.0,0.00030684,2]
[320326697,1711291850242,-512.43,0.00030684,2]
[320326698,1711291850251,-500.0,0.00030684,2]
[320326699,1711291850261,-765.83,0.00030684,2]
[320326700,1711291850270,-500.0,0.00030684,2]
[320326701,1711291850280,-500.0,0.00030684,2]
[320326702,1711291850289,-626.66,0.00030684,2]
[320326703,1711291850298,-641.66,0.00030684,2]
[320326704,1711291850307,-3464.72,0.00030684,2]
[320326705,1711291850316,-178.11546087,0.00030802,2]
[320326706,1711291850326,-500.0,0.00030802,2]
[320326707,1711291850335,-2317.43,0.00030802,2]
[320326708,1711291850344,-568.52,0.00030802,2]
[320326709,1711291850354,-503.33164329,0.00030802,2]
[320326710,1711291850400,-69.01835671,0.00030802,2]
[320326711,1711291850409,-500.0,0.00030802,2]
[320326712,1711291850419,-37.46284955,0.00030958,2]
[320326713,1711291850430,-462.53715045,0.00030958,2]
[320326714,1711291850439,-500.0,0.00030958,2]
[320326715,1711291850448,-765.83,0.00030958,2]
[320326716,1711291850457,-500.0,0.00030958,2]
[320326717,1711291850467,-626.66,0.00030958,2]
[320326718,1711291850479,-641.66,0.00030958,2]
[320326719,1711291850488,-2834.5051629,0.00030958,2]
[320326720,1711291850499,-630.2148371,0.00030958,2]
[320326721,1711291850509,-500.0,0.00031076,2]
[320326722,1711291850518,-2175.8851629,0.00031076,2]
[320327163,1711292041584,18495.2200322,0.00015498,2]
[320327164,1711292054390,155.41994841,0.000195,2]
[320327170,1711292543609,242.198499,0.00020467,2]
[320327171,1711292815323,24900.0,0.00020143,2]
[320327172,1711292834169,-302.52792033,0.00020982,2]
[320327173,1711292834191,-167.93441538,0.00021045,2]
[320327174,1711292834212,-53.55113237,0.00021143,2]
[320327175,1711292838809,-3532.3404907,0.0002062,2]
[320327176,1711292881842,1768.02951168,0.000189,2]
[320327177,1711292920402,-1138.1344341,0.00020933,2]